[Event "*** SCC Grand Prix: Titled Tuesday Blitz"]
[Site "Chess.com"]
[Date "2020.07.07"]
[Round "8"]
[White "tamarozi99"]
[Black "tteshan"]
[Result "0-1"]
[WhiteElo "1976"]
[BlackElo "2264"]
[TimeControl "180+1"]
[EndTime "11:36:41 PDT"]
[Termination "tteshan won by resignation"]

1. e4 {[%clk 0:03:00.9]} 1... c6 {[%clk 0:02:58.2]} 2. d4 {[%clk 0:02:59.9]}
2... d5 {[%clk 0:02:57.8]} 3. e5 {[%clk 0:02:59.9]} 3... c5 {[%clk 0:02:58.1]}
4. dxc5 {[%clk 0:02:56.2]} 4... Nc6 {[%clk 0:02:57.6]} 5. Nf3 {[%clk 0:02:55.1]}
5... Bg4 {[%clk 0:02:57.3]} 6. Bf4 {[%clk 0:02:46.8]} 6... e6 {[%clk 0:02:53.9]}
7. Nbd2 {[%clk 0:02:44.7]} 7... Bxc5 {[%clk 0:02:48.4]} 8. h3 {[%clk 0:02:44.1]}
8... Bh5 {[%clk 0:02:44.4]} 9. Bd3 {[%clk 0:02:43.1]} 9... Nge7 {[%clk
0:02:26.2]} 10. O-O {[%clk 0:02:29.8]} 10... Bg6 {[%clk 0:02:24.7]} 11. Nb3
{[%clk 0:02:21.3]} 11... Bb6 {[%clk 0:02:22.6]} 12. c4 {[%clk 0:02:08.6]} 12...
Bxd3 {[%clk 0:02:09.7]} 13. Qxd3 {[%clk 0:02:08.3]} 13... O-O {[%clk 0:02:04.3]}
14. cxd5 {[%clk 0:01:48.9]} 14... Qxd5 {[%clk 0:02:02.6]} 15. Qxd5 {[%clk
0:01:39.7]} 15... Nxd5 {[%clk 0:02:03.5]} 16. Bg3 {[%clk 0:01:39.5]} 16... Rac8
{[%clk 0:01:59.2]} 17. a3 {[%clk 0:01:37.9]} 17... Rfd8 {[%clk 0:01:58.3]} 18.
Rad1 {[%clk 0:01:37.2]} 18... Nce7 {[%clk 0:01:51.4]} 19. Nbd4 {[%clk
0:01:32.2]} 19... a6 {[%clk 0:01:39.8]} 20. Bh4 {[%clk 0:01:08.3]} 20... Rd7
{[%clk 0:01:32.9]} 21. g4 {[%clk 0:01:06.6]} 21... Nf4 {[%clk 0:01:24.6]} 22.
Kh2 {[%clk 0:00:47]} 22... Ned5 {[%clk 0:01:10]} 23. Rd2 {[%clk 0:00:38.7]}
23... Rdc7 {[%clk 0:01:05.6]} 24. Rfd1 {[%clk 0:00:37.9]} 24... Rc1 {[%clk
0:01:00.7]} 25. Kg3 {[%clk 0:00:36.7]} 25... h6 {[%clk 0:00:54]} 26. g5 {[%clk
0:00:33.1]} 26... h5 {[%clk 0:00:41.8]} 27. Nb3 {[%clk 0:00:19.7]} 27... Ne2+
{[%clk 0:00:28.9]} 28. Rxe2 {[%clk 0:00:11.7]} 28... Rxd1 {[%clk 0:00:28.6]} 29.
Rd2 {[%clk 0:00:12.1]} 29... Rxd2 {[%clk 0:00:25]} 30. Nfxd2 {[%clk 0:00:11]}
30... Rc2 {[%clk 0:00:24.8]} 31. Kf3 {[%clk 0:00:09.1]} 31... Rxb2 {[%clk
0:00:23.1]} 32. Ke4 {[%clk 0:00:07]} 32... a5 {[%clk 0:00:22.6]} 33. a4 {[%clk
0:00:06]} 33... Ra2 {[%clk 0:00:22.4]} 34. Nc4 {[%clk 0:00:04.9]} 34... Bc7
{[%clk 0:00:19.5]} 35. Nbxa5 {[%clk 0:00:03.9]} 35... Rxa4 {[%clk 0:00:17.3]}
36. Kd3 {[%clk 0:00:03.9]} 36... Bxa5 {[%clk 0:00:16.6]} 37. Nxa5 {[%clk
0:00:03.4]} 37... Rxh4 {[%clk 0:00:17.5]} 38. Nxb7 {[%clk 0:00:02.9]} 38...
Rxh3+ {[%clk 0:00:17.3]} 39. Kd4 {[%clk 0:00:03.2]} 39... Rb3 {[%clk 0:00:16.6]}
40. Nd6 {[%clk 0:00:03]} 40... Rb4+ {[%clk 0:00:17.2]} 41. Kc5 {[%clk
0:00:03.2]} 41... Rg4 {[%clk 0:00:16.4]} 42. f4 {[%clk 0:00:02.5]} 42... Rxf4
{[%clk 0:00:16.4]} 43. Kc6 {[%clk 0:00:02.8]} 43... h4 {[%clk 0:00:13.8]} 44.
Kd7 {[%clk 0:00:03.7]} 44... h3 {[%clk 0:00:14.1]} 0-1

[Event "*** SCC Grand Prix: Titled Tuesday Blitz"]
[Site "Chess.com"]
[Date "2020.07.07"]
[Round "8"]
[White "guillejr"]
[Black "ApoIogiA"]
[Result "1-0"]
[WhiteElo "1960"]
[BlackElo "2101"]
[TimeControl "180+1"]
[EndTime "11:36:41 PDT"]
[Termination "guillejr won by resignation"]

1. e4 {[%clk 0:03:00.9]} 1... c5 {[%clk 0:02:59.9]} 2. Nf3 {[%clk 0:03:00]} 2...
d6 {[%clk 0:03:00.3]} 3. d4 {[%clk 0:03:00.3]} 3... cxd4 {[%clk 0:03:01.2]} 4.
Nxd4 {[%clk 0:03:00.9]} 4... Nf6 {[%clk 0:03:01.5]} 5. Nc3 {[%clk 0:03:01.4]}
5... a6 {[%clk 0:03:02.4]} 6. Bg5 {[%clk 0:03:01.1]} 6... e6 {[%clk 0:03:02.7]}
7. f4 {[%clk 0:02:59.4]} 7... h6 {[%clk 0:03:01.3]} 8. Bh4 {[%clk 0:02:58.4]}
8... Be7 {[%clk 0:03:00.9]} 9. Qe2 {[%clk 0:02:57.9]} 9... Nbd7 {[%clk 0:02:56]}
10. O-O-O {[%clk 0:02:56.3]} 10... Qc7 {[%clk 0:02:55.3]} 11. g4 {[%clk
0:02:54.8]} 11... b5 {[%clk 0:02:47.6]} 12. Bg2 {[%clk 0:02:50.1]} 12... Bb7
{[%clk 0:02:44.3]} 13. e5 {[%clk 0:02:46.7]} 13... dxe5 {[%clk 0:02:40.1]} 14.
fxe5 {[%clk 0:02:33]} 14... Bxg2 {[%clk 0:02:33.8]} 15. Qxg2 {[%clk 0:02:32.3]}
15... Nd5 {[%clk 0:02:25]} 16. Bxe7 {[%clk 0:02:24]} 16... Kxe7 {[%clk
0:02:23.7]} 17. Nxd5+ {[%clk 0:02:18.5]} 17... exd5 {[%clk 0:02:24.6]} 18. Qxd5
{[%clk 0:02:18.8]} 18... Rac8 {[%clk 0:02:21.7]} 19. Rhf1 {[%clk 0:02:13.6]}
19... Nxe5 {[%clk 0:02:16.3]} 20. Rde1 {[%clk 0:01:59.4]} 20... f6 {[%clk
0:02:16.4]} 21. Qe6+ {[%clk 0:01:48.7]} 21... Kf8 {[%clk 0:02:15.9]} 22. Rxe5
{[%clk 0:01:46.9]} 22... Qc4 {[%clk 0:02:02.4]} 23. Qxc4 {[%clk 0:01:28.9]}
23... Rxc4 {[%clk 0:02:01.3]} 24. Rd5 {[%clk 0:01:29]} 24... Ke7 {[%clk
0:01:57.5]} 25. b3 {[%clk 0:01:23.7]} 25... Rc7 {[%clk 0:01:53]} 26. Re1+ {[%clk
0:01:23.7]} 26... Kf7 {[%clk 0:01:53.1]} 27. Rd6 {[%clk 0:01:17.2]} 27... Rhc8
{[%clk 0:01:50]} 28. Kb2 {[%clk 0:01:12.2]} 28... a5 {[%clk 0:01:47.1]} 29. Re2
{[%clk 0:01:11.5]} 29... b4 {[%clk 0:01:43]} 30. Rd5 {[%clk 0:00:55.6]} 30...
Rc5 {[%clk 0:01:41.6]} 31. Rxc5 {[%clk 0:00:54]} 31... Rxc5 {[%clk 0:01:42.5]}
32. Nf5 {[%clk 0:00:50.5]} 32... h5 {[%clk 0:01:40.3]} 33. Re7+ {[%clk
0:00:48.8]} 33... Kf8 {[%clk 0:01:34.8]} 34. Re4 {[%clk 0:00:28.6]} 34... hxg4
{[%clk 0:01:31.7]} 35. Nd4 {[%clk 0:00:28.5]} 35... f5 {[%clk 0:01:28.7]} 36.
Ne6+ {[%clk 0:00:24.9]} 36... Kf7 {[%clk 0:01:25.7]} 37. Nxc5 {[%clk 0:00:25.8]}
37... fxe4 {[%clk 0:01:24.7]} 38. Nxe4 {[%clk 0:00:26.7]} 38... Ke6 {[%clk
0:01:25.3]} 39. c4 {[%clk 0:00:22]} 39... bxc3+ {[%clk 0:01:24.1]} 40. Kxc3
{[%clk 0:00:21.6]} 40... Ke5 {[%clk 0:01:25]} 41. Ng3 {[%clk 0:00:19.9]} 41...
g6 {[%clk 0:01:20.9]} 42. b4 {[%clk 0:00:20.1]} 42... axb4+ {[%clk 0:01:20.4]}
43. Kxb4 {[%clk 0:00:21]} 43... Kf4 {[%clk 0:01:21.1]} 44. a4 {[%clk 0:00:21.1]}
44... Kf3 {[%clk 0:01:22]} 45. a5 {[%clk 0:00:21]} 45... Kg2 {[%clk 0:01:22.9]}
46. a6 {[%clk 0:00:18.2]} 46... Kxh2 {[%clk 0:01:23.3]} 47. a7 {[%clk
0:00:18.7]} 47... Kxg3 {[%clk 0:01:23.6]} 48. a8=Q {[%clk 0:00:19.6]} 48... Kh2
{[%clk 0:01:23.9]} 49. Qa2+ {[%clk 0:00:20.1]} 49... Kh3 {[%clk 0:01:23.5]} 50.
Qb1 {[%clk 0:00:19.4]} 50... g3 {[%clk 0:01:24.4]} 51. Qxg6 {[%clk 0:00:19.8]}
51... g2 {[%clk 0:01:24.3]} 52. Qh5+ {[%clk 0:00:20.2]} 52... Kg3 {[%clk
0:01:24.7]} 53. Qg5+ {[%clk 0:00:20.2]} 53... Kf3 {[%clk 0:01:25.2]} 54. Qc1
{[%clk 0:00:19.6]} 54... Kf2 {[%clk 0:01:25.2]} 55. Qd2+ {[%clk 0:00:20.2]}
55... Kf1 {[%clk 0:01:25.1]} 56. Qd1+ {[%clk 0:00:20.2]} 56... Kf2 {[%clk
0:01:25.5]} 57. Qd2+ {[%clk 0:00:20.5]} 57... Kf1 {[%clk 0:01:26]} 58. Qf4+
{[%clk 0:00:20.4]} 58... Ke2 {[%clk 0:01:25.7]} 59. Qg4+ {[%clk 0:00:20.2]}
59... Kf1 {[%clk 0:01:25.6]} 60. Qf3+ {[%clk 0:00:20.3]} 60... Kg1 {[%clk
0:01:25.6]} 61. Kc4 {[%clk 0:00:20.7]} 61... Kh2 {[%clk 0:01:26.2]} 62. Qh5+
{[%clk 0:00:20.4]} 62... Kg3 {[%clk 0:01:26.1]} 63. Qg5+ {[%clk 0:00:20.6]}
63... Kf2 {[%clk 0:01:23.5]} 64. Qf4+ {[%clk 0:00:20.4]} 64... Ke2 {[%clk
0:01:21.9]} 65. Qg3 {[%clk 0:00:20.2]} 65... Kf1 {[%clk 0:01:21.8]} 66. Qf3+
{[%clk 0:00:20.4]} 66... Kg1 {[%clk 0:01:22.5]} 67. Kd4 {[%clk 0:00:20.7]} 67...
Kh2 {[%clk 0:01:23]} 68. Qf4+ {[%clk 0:00:20]} 68... Kh3 {[%clk 0:01:20.5]} 69.
Qf2 {[%clk 0:00:19.2]} 69... Kh2 {[%clk 0:01:20.6]} 70. Ke3 {[%clk 0:00:19.2]}
70... Kh1 {[%clk 0:01:21.1]} 71. Qf3 {[%clk 0:00:19]} 71... Kh2 {[%clk
0:01:19.3]} 72. Qh5+ {[%clk 0:00:18.4]} 72... Kg3 {[%clk 0:01:18.6]} 73. Qg5+
{[%clk 0:00:18.6]} 73... Kh3 {[%clk 0:01:14.3]} 74. Kf2 {[%clk 0:00:18.6]} 74...
g1=Q+ {[%clk 0:01:14]} 75. Qxg1 {[%clk 0:00:18.4]} 1-0

[Event "*** SCC Grand Prix: Titled Tuesday Blitz"]
[Site "Chess.com"]
[Date "2020.07.07"]
[Round "8"]
[White "JonahWillow"]
[Black "Msb2"]
[Result "0-1"]
[WhiteElo "2700"]
[BlackElo "2864"]
[TimeControl "180+1"]
[EndTime "11:36:43 PDT"]
[Termination "Msb2 won by resignation"]

1. e4 {[%clk 0:03:00.9]} 1... e6 {[%clk 0:02:59.6]} 2. d4 {[%clk 0:03:00.5]}
2... d5 {[%clk 0:02:58.7]} 3. Nd2 {[%clk 0:03:01.1]} 3... c5 {[%clk 0:02:57.7]}
4. Ngf3 {[%clk 0:03:00.6]} 4... cxd4 {[%clk 0:02:57.9]} 5. exd5 {[%clk
0:03:00.7]} 5... Qxd5 {[%clk 0:02:58.5]} 6. Bc4 {[%clk 0:03:00.9]} 6... Qd7
{[%clk 0:02:59.2]} 7. O-O {[%clk 0:02:59.8]} 7... Nc6 {[%clk 0:02:59.8]} 8. Nb3
{[%clk 0:02:57.8]} 8... a6 {[%clk 0:03:00.2]} 9. a4 {[%clk 0:02:54.1]} 9... Qc7
{[%clk 0:02:52.7]} 10. Qe2 {[%clk 0:02:53.1]} 10... Bd6 {[%clk 0:02:46.8]} 11.
Rd1 {[%clk 0:02:50.3]} 11... Nge7 {[%clk 0:02:46.4]} 12. Nbxd4 {[%clk
0:02:45.9]} 12... Nxd4 {[%clk 0:02:46.6]} 13. Rxd4 {[%clk 0:02:45]} 13... Nf5
{[%clk 0:02:46.3]} 14. Rd1 {[%clk 0:02:44.1]} 14... Bd7 {[%clk 0:02:43.9]} 15.
c3 {[%clk 0:02:43.6]} 15... Bc6 {[%clk 0:02:43.1]} 16. Bd3 {[%clk 0:02:41.8]}
16... O-O-O {[%clk 0:02:36.7]} 17. Bg5 {[%clk 0:02:25.3]} 17... f6 {[%clk
0:02:16.2]} 18. Bc1 {[%clk 0:01:33.2]} 18... Rhe8 {[%clk 0:02:06.8]} 19. h3
{[%clk 0:01:30.7]} 19... g6 {[%clk 0:02:03.9]} 20. b4 {[%clk 0:01:28.4]} 20...
e5 {[%clk 0:01:38.7]} 21. b5 {[%clk 0:01:25.4]} 21... e4 {[%clk 0:01:38.2]} 22.
bxc6 {[%clk 0:01:23.4]} 22... Qxc6 {[%clk 0:01:39.1]} 23. Nd4 {[%clk 0:01:04.2]}
23... Nxd4 {[%clk 0:01:34.3]} 24. cxd4 {[%clk 0:01:03.9]} 24... exd3 {[%clk
0:01:34.4]} 25. Qxd3 {[%clk 0:01:03.9]} 25... Kb8 {[%clk 0:01:25.4]} 26. Be3
{[%clk 0:01:00.5]} 26... Qd5 {[%clk 0:01:21.2]} 27. Rab1 {[%clk 0:00:59.4]}
27... Ka8 {[%clk 0:01:19.7]} 28. Rb6 {[%clk 0:00:56.2]} 28... Rd7 {[%clk
0:01:01]} 29. Rdb1 {[%clk 0:00:52.7]} 29... f5 {[%clk 0:01:00.9]} 30. Bd2 {[%clk
0:00:23.5]} 30... Bb8 {[%clk 0:00:59]} 31. Bc3 {[%clk 0:00:19.8]} 31... Ba7
{[%clk 0:00:58.2]} 32. R6b4 {[%clk 0:00:16.7]} 32... Rde7 {[%clk 0:00:55.6]} 33.
Qc2 {[%clk 0:00:09.6]} 33... f4 {[%clk 0:00:53.9]} 34. Qb2 {[%clk 0:00:08.6]}
34... f3 {[%clk 0:00:53.1]} 35. g3 {[%clk 0:00:07.9]} 35... Bb8 {[%clk
0:00:43.3]} 36. Qb3 {[%clk 0:00:07.4]} 36... Qd7 {[%clk 0:00:31]} 37. Kh2 {[%clk
0:00:07.6]} 37... Re2 {[%clk 0:00:29.9]} 38. Rf1 {[%clk 0:00:07.6]} 38... Qd6
{[%clk 0:00:26.2]} 39. Kg1 {[%clk 0:00:05.7]} 39... Rxf2 {[%clk 0:00:08.1]} 40.
Rxf2 {[%clk 0:00:06.6]} 40... Qxg3+ {[%clk 0:00:08.4]} 41. Kf1 {[%clk
0:00:07.3]} 41... Qxh3+ {[%clk 0:00:08.9]} 42. Kg1 {[%clk 0:00:07.9]} 42... Bg3
{[%clk 0:00:08.6]} 43. Qc2 {[%clk 0:00:06.9]} 43... Bxf2+ {[%clk 0:00:08.8]} 44.
Qxf2 {[%clk 0:00:07.8]} 44... Re2 {[%clk 0:00:09.1]} 45. Rb1 {[%clk 0:00:04.6]}
45... Rxf2 {[%clk 0:00:09.1]} 46. Kxf2 {[%clk 0:00:05.2]} 46... Qg2+ {[%clk
0:00:09.4]} 47. Ke3 {[%clk 0:00:05.3]} 47... Qe2+ {[%clk 0:00:10.1]} 48. Kf4
{[%clk 0:00:05.9]} 48... f2 {[%clk 0:00:11]} 0-1

[Event "*** SCC Grand Prix: Titled Tuesday Blitz"]
[Site "Chess.com"]
[Date "2020.07.07"]
[Round "8"]
[White "Fandorine"]
[Black "ArjunErigaisi2003"]
[Result "0-1"]
[WhiteElo "2880"]
[BlackElo "3028"]
[TimeControl "180+1"]
[EndTime "11:36:45 PDT"]
[Termination "ArjunErigaisi2003 won on time"]

1. e4 {[%clk 0:03:00.9]} 1... c5 {[%clk 0:02:57.8]} 2. Nf3 {[%clk 0:03:01.3]}
2... d6 {[%clk 0:02:57.7]} 3. Nc3 {[%clk 0:03:01.8]} 3... a6 {[%clk 0:02:56.6]}
4. d4 {[%clk 0:03:01.2]} 4... cxd4 {[%clk 0:02:56.5]} 5. Nxd4 {[%clk 0:03:02.1]}
5... Nf6 {[%clk 0:02:56.8]} 6. Be3 {[%clk 0:03:01.7]} 6... e5 {[%clk 0:02:55.5]}
7. Nf3 {[%clk 0:03:01.9]} 7... Be7 {[%clk 0:02:46.4]} 8. Nd2 {[%clk 0:03:01.9]}
8... b5 {[%clk 0:02:30.9]} 9. a4 {[%clk 0:03:01]} 9... b4 {[%clk 0:02:31]} 10.
Nd5 {[%clk 0:03:00.8]} 10... Nxd5 {[%clk 0:02:30.7]} 11. exd5 {[%clk 0:03:01.7]}
11... O-O {[%clk 0:02:30.9]} 12. Nc4 {[%clk 0:03:02.1]} 12... Nd7 {[%clk
0:02:27.2]} 13. a5 {[%clk 0:03:02.3]} 13... f5 {[%clk 0:02:24.7]} 14. Be2 {[%clk
0:02:58.1]} 14... f4 {[%clk 0:02:15.1]} 15. Bb6 {[%clk 0:02:58]} 15... Qe8
{[%clk 0:02:15.1]} 16. Qd2 {[%clk 0:02:53.2]} 16... Qg6 {[%clk 0:02:09.6]} 17.
O-O-O {[%clk 0:02:02.1]} 17... f3 {[%clk 0:01:38.4]} 18. gxf3 {[%clk 0:01:49.5]}
18... Nxb6 {[%clk 0:01:35.5]} 19. axb6 {[%clk 0:01:50.4]} 19... Bg5 {[%clk
0:01:32.1]} 20. Ne3 {[%clk 0:01:50.9]} 20... a5 {[%clk 0:01:17.7]} 21. Kb1
{[%clk 0:01:50.9]} 21... Rb8 {[%clk 0:01:13.2]} 22. Bd3 {[%clk 0:01:10.1]} 22...
Qh5 {[%clk 0:01:09]} 23. Qe2 {[%clk 0:00:59.5]} 23... Bxe3 {[%clk 0:00:54.8]}
24. fxe3 {[%clk 0:00:58.3]} 24... Qxf3 {[%clk 0:00:44.9]} 25. Qd2 {[%clk
0:00:58.5]} 25... Bf5 {[%clk 0:00:34.7]} 26. Rhf1 {[%clk 0:00:36.3]} 26... Qg4
{[%clk 0:00:33]} 27. h3 {[%clk 0:00:28.7]} 27... Qg5 {[%clk 0:00:26.3]} 28. Rg1
{[%clk 0:00:21.6]} 28... Qh5 {[%clk 0:00:18.9]} 29. e4 {[%clk 0:00:19.3]} 29...
Bg6 {[%clk 0:00:16.3]} 30. Qe3 {[%clk 0:00:14.2]} 30... Qf3 {[%clk 0:00:14.2]}
31. Qg5 {[%clk 0:00:09.7]} 31... Qf6 {[%clk 0:00:10.7]} 32. Qg4 {[%clk
0:00:08.5]} 32... Rxb6 {[%clk 0:00:09]} 33. Rdf1 {[%clk 0:00:09.1]} 33... Qe7
{[%clk 0:00:09.5]} 34. Rxf8+ {[%clk 0:00:09.6]} 34... Qxf8 {[%clk 0:00:10.4]}
35. h4 {[%clk 0:00:09.2]} 35... Rb7 {[%clk 0:00:07.1]} 36. h5 {[%clk 0:00:08.5]}
36... Be8 {[%clk 0:00:07.6]} 37. h6 {[%clk 0:00:05.5]} 37... g6 {[%clk
0:00:06.9]} 38. Qe6+ {[%clk 0:00:05.6]} 38... Kh8 {[%clk 0:00:04.1]} 39. Rf1
{[%clk 0:00:04.8]} 39... Rf7 {[%clk 0:00:02.7]} 40. Rg1 {[%clk 0:00:02.6]} 40...
Bd7 {[%clk 0:00:02.2]} 0-1

[Event "*** SCC Grand Prix: Titled Tuesday Blitz"]
[Site "Chess.com"]
[Date "2020.07.07"]
[Round "8"]
[White "Twitch_ElhamBlitz05"]
[Black "bgfbfbgfbgfgf"]
[Result "0-1"]
[WhiteElo "2795"]
[BlackElo "2656"]
[TimeControl "180+1"]
[EndTime "11:36:46 PDT"]
[Termination "bgfbfbgfbgfgf won on time"]

1. e4 {[%clk 0:03:00.9]} 1... e5 {[%clk 0:02:59.1]} 2. Nc3 {[%clk 0:03:00.6]}
2... Nc6 {[%clk 0:02:57.1]} 3. Bc4 {[%clk 0:03:01.1]} 3... Nf6 {[%clk
0:02:52.5]} 4. d3 {[%clk 0:03:00.9]} 4... Na5 {[%clk 0:02:52.4]} 5. Qf3 {[%clk
0:03:00.6]} 5... Nxc4 {[%clk 0:02:35]} 6. dxc4 {[%clk 0:03:01.5]} 6... Bb4
{[%clk 0:02:35.3]} 7. Ne2 {[%clk 0:02:59.6]} 7... h6 {[%clk 0:02:31.4]} 8. h3
{[%clk 0:02:58.3]} 8... d6 {[%clk 0:02:30.7]} 9. Be3 {[%clk 0:02:57.3]} 9... b6
{[%clk 0:02:26.3]} 10. a3 {[%clk 0:02:49.5]} 10... Bxc3+ {[%clk 0:02:24.2]} 11.
Nxc3 {[%clk 0:02:50.4]} 11... Bb7 {[%clk 0:02:22]} 12. O-O-O {[%clk 0:02:47.2]}
12... Qe7 {[%clk 0:02:20.9]} 13. g4 {[%clk 0:02:46.8]} 13... Qe6 {[%clk
0:02:18]} 14. Nd5 {[%clk 0:02:39.1]} 14... Nxd5 {[%clk 0:02:13.4]} 15. cxd5
{[%clk 0:02:40]} 15... Qe7 {[%clk 0:02:11.6]} 16. Kb1 {[%clk 0:02:33.3]} 16...
O-O-O {[%clk 0:02:09.9]} 17. h4 {[%clk 0:02:32.8]} 17... Kb8 {[%clk 0:02:02.1]}
18. g5 {[%clk 0:02:27.5]} 18... h5 {[%clk 0:02:01.8]} 19. g6 {[%clk 0:02:04.8]}
19... f6 {[%clk 0:01:52.2]} 20. Qe2 {[%clk 0:01:58.7]} 20... c6 {[%clk
0:01:45.5]} 21. dxc6 {[%clk 0:01:55.5]} 21... Bxc6 {[%clk 0:01:46.4]} 22. f3
{[%clk 0:01:56.3]} 22... Kb7 {[%clk 0:01:44.7]} 23. c4 {[%clk 0:01:56.4]} 23...
Qe6 {[%clk 0:01:42.1]} 24. Rd2 {[%clk 0:01:55.2]} 24... f5 {[%clk 0:01:41.3]}
25. Rg1 {[%clk 0:01:40.7]} 25... fxe4 {[%clk 0:01:30.5]} 26. fxe4 {[%clk
0:01:41.6]} 26... Bxe4+ {[%clk 0:01:20.5]} 27. Ka1 {[%clk 0:01:41.8]} 27... Bc6
{[%clk 0:01:20.4]} 28. b3 {[%clk 0:01:25.7]} 28... d5 {[%clk 0:01:08.5]} 29.
Rgd1 {[%clk 0:01:20.7]} 29... Qd6 {[%clk 0:00:40.7]} 30. cxd5 {[%clk 0:01:04]}
30... Bd7 {[%clk 0:00:32]} 31. Qd3 {[%clk 0:00:44.6]} 31... Rhf8 {[%clk
0:00:29.3]} 32. Kb2 {[%clk 0:00:39.5]} 32... Rc8 {[%clk 0:00:26.7]} 33. Bg5
{[%clk 0:00:35.5]} 33... Bf5 {[%clk 0:00:23.7]} 34. Qe3 {[%clk 0:00:35.5]} 34...
Bxg6 {[%clk 0:00:22.4]} 35. Re1 {[%clk 0:00:34.1]} 35... Rfe8 {[%clk 0:00:20.3]}
36. Rf2 {[%clk 0:00:27.7]} 36... Rc7 {[%clk 0:00:19.8]} 37. Ree2 {[%clk
0:00:16]} 37... Rec8 {[%clk 0:00:17.5]} 38. Rd2 {[%clk 0:00:10.6]} 38... Rc1
{[%clk 0:00:14.6]} 39. b4 {[%clk 0:00:04.4]} 39... Rb1+ {[%clk 0:00:14.2]} 40.
Ka2 {[%clk 0:00:04.9]} 40... Rcc1 {[%clk 0:00:13.2]} 41. Rb2 {[%clk 0:00:05.2]}
41... Qxd5+ {[%clk 0:00:13.1]} 42. Rb3 {[%clk 0:00:03.6]} 42... Ra1+ {[%clk
0:00:09.6]} 43. Kb2 {[%clk 0:00:04.5]} 43... Rcb1+ {[%clk 0:00:09.3]} 44. Kc3
{[%clk 0:00:05]} 44... Qxb3+ {[%clk 0:00:09.6]} 0-1

[Event "*** SCC Grand Prix: Titled Tuesday Blitz"]
[Site "Chess.com"]
[Date "2020.07.07"]
[Round "8"]
[White "deep306"]
[Black "2nd_life"]
[Result "1/2-1/2"]
[WhiteElo "2655"]
[BlackElo "2496"]
[TimeControl "180+1"]
[EndTime "11:36:47 PDT"]
[Termination "Game drawn by repetition"]

1. e4 {[%clk 0:03:00.4]} 1... e5 {[%clk 0:02:59.6]} 2. Nf3 {[%clk 0:03:00.1]}
2... Nc6 {[%clk 0:02:59.3]} 3. Bc4 {[%clk 0:02:59.6]} 3... Bc5 {[%clk
0:02:59.1]} 4. c3 {[%clk 0:02:59.4]} 4... Nf6 {[%clk 0:02:58.8]} 5. d4 {[%clk
0:02:59.1]} 5... exd4 {[%clk 0:02:57.2]} 6. e5 {[%clk 0:02:59.3]} 6... d5 {[%clk
0:02:54.8]} 7. Bb5 {[%clk 0:02:59.6]} 7... Ne4 {[%clk 0:02:54.2]} 8. cxd4 {[%clk
0:03:00.1]} 8... Bb6 {[%clk 0:02:54]} 9. Nc3 {[%clk 0:02:59.4]} 9... O-O {[%clk
0:02:46.2]} 10. Be3 {[%clk 0:02:59.4]} 10... Bg4 {[%clk 0:02:21.5]} 11. h3
{[%clk 0:02:58.9]} 11... Bxf3 {[%clk 0:02:21.2]} 12. gxf3 {[%clk 0:02:58.7]}
12... Nxc3 {[%clk 0:02:18]} 13. bxc3 {[%clk 0:02:58]} 13... Ne7 {[%clk
0:02:17.9]} 14. Bd3 {[%clk 0:02:55.9]} 14... Qd7 {[%clk 0:02:15.2]} 15. Qc2
{[%clk 0:02:55]} 15... g6 {[%clk 0:02:00.1]} 16. h4 {[%clk 0:02:54]} 16... Rac8
{[%clk 0:01:53.7]} 17. h5 {[%clk 0:02:07.9]} 17... c5 {[%clk 0:01:52.4]} 18. Qd2
{[%clk 0:02:02]} 18... cxd4 {[%clk 0:01:46.4]} 19. cxd4 {[%clk 0:02:01.5]} 19...
Nc6 {[%clk 0:01:40.3]} 20. Qb2 {[%clk 0:01:48.3]} 20... Ba5+ {[%clk 0:01:26.1]}
21. Ke2 {[%clk 0:01:48.2]} 21... Nb4 {[%clk 0:01:25.5]} 22. Rad1 {[%clk
0:01:30.2]} 22... Nxd3 {[%clk 0:01:13.6]} 23. Rxd3 {[%clk 0:01:30.1]} 23... Qa4
{[%clk 0:01:11]} 24. Rc1 {[%clk 0:01:10.3]} 24... Rxc1 {[%clk 0:01:06.6]} 25.
Bxc1 {[%clk 0:01:09.6]} 25... Rc8 {[%clk 0:01:05.5]} 26. Ke3 {[%clk 0:00:41.8]}
26... Rc2 {[%clk 0:00:46.6]} 27. Qb1 {[%clk 0:00:40.1]} 27... Qc6 {[%clk
0:00:40.8]} 28. Ba3 {[%clk 0:00:38.3]} 28... b5 {[%clk 0:00:14.4]} 29. Bc5
{[%clk 0:00:35.8]} 29... Rc4 {[%clk 0:00:10.3]} 30. h6 {[%clk 0:00:29.3]} 30...
a6 {[%clk 0:00:09.5]} 31. Qg1 {[%clk 0:00:24]} 31... Bd8 {[%clk 0:00:08.3]} 32.
Qg4 {[%clk 0:00:23.3]} 32... Qe6 {[%clk 0:00:07.1]} 33. Qxe6 {[%clk 0:00:16.6]}
33... fxe6 {[%clk 0:00:07]} 34. f4 {[%clk 0:00:16.7]} 34... b4 {[%clk
0:00:05.5]} 35. a3 {[%clk 0:00:15.5]} 35... a5 {[%clk 0:00:03.9]} 36. axb4
{[%clk 0:00:14.8]} 36... axb4 {[%clk 0:00:04.3]} 37. Rb3 {[%clk 0:00:15.1]}
37... Ba5 {[%clk 0:00:04.4]} 38. Rb1 {[%clk 0:00:13.8]} 38... Rc3+ {[%clk
0:00:03.4]} 39. Ke2 {[%clk 0:00:13.8]} 39... Rc2+ {[%clk 0:00:03.6]} 40. Ke3
{[%clk 0:00:13]} 40... Rc3+ {[%clk 0:00:03.8]} 41. Ke2 {[%clk 0:00:13.2]} 41...
Rc2+ {[%clk 0:00:02.8]} 42. Ke3 {[%clk 0:00:13.4]} 42... Rc3+ {[%clk 0:00:03.1]}
1/2-1/2